fUSD/lending_fUSD_20241106
["ID","MTS","AMOUNT","RATE_DAILY","PERIOD"]
[341464048,1730909450292,-500.0,0.00035616,7]
[341464049,1730909450304,-500.0,0.00035616,7]
[341464050,1730909450316,-500.0,0.00035616,7]
[341464051,1730909450329,-500.0,0.00035616,7]
[341464052,1730909450345,-1116.97,0.00035616,7]
[341464053,1730909450357,-500.0,0.00035616,7]
[341464054,1730909450369,-665.4,0.00035616,7]
[341464055,1730909450382,-500.0,0.00035616,7]
[341464056,1730909450394,-151.0,0.00035616,7]
[341464057,1730909450406,-2009.4,0.00035616,7]
[341464058,1730909450419,-500.0,0.00035616,7]
[341464059,1730909450432,-151.0,0.00035616,7]
[341464060,1730909450444,-500.0,0.00035616,7]
[341464061,1730909450458,-500.0,0.00035616,7]
[341464062,1730909450471,-500.0,0.00035616,7]
[341464063,1730909450485,-500.0,0.00035616,7]
[341464064,1730909450499,-505.90548733,0.00035616,7]
[341464065,1730909450511,-500.0,0.00035616,7]
[341464066,1730909450524,-500.0,0.00035616,7]
[341464067,1730909450536,-500.0,0.00035616,7]
[341464068,1730909450549,-1779.46,0.00035616,7]
[341464069,1730909450560,-500.0,0.00035616,7]
[341464070,1730909450573,-500.0,0.00035616,7]
[341464071,1730909450585,-500.0,0.00035616,7]
[341464072,1730909450599,-500.52691399,0.00035616,7]
[341464073,1730909450611,-500.0,0.00035616,7]
[341464074,1730909450624,-500.0,0.00035616,7]
[341464075,1730909450636,-507.04597946,0.00035616,7]
[341464076,1730909450647,-868.15,0.00035616,7]
[341464077,1730909450658,-500.0,0.00035616,7]
[341464078,1730909450670,-521.80392605,0.00035616,7]
[341464079,1730909450682,-855.08,0.00035616,7]
[341464080,1730909450694,-500.0,0.00035616,7]
[341464081,1730909450705,-717.71,0.00035616,7]
[341464082,1730909450716,-1866.57,0.00035616,7]
[341464083,1730909450728,-500.0,0.00035616,7]
[341464084,1730909450739,-300.0,0.00035616,7]
[341464085,1730909450751,-500.0,0.00035616,7]
[341464086,1730909450763,-500.0,0.00035616,7]
[341464087,1730909450774,-150.9474072,0.00035616,7]
[341464088,1730909450786,-634.00421092,0.00035616,7]
[341464089,1730909450797,-500.0,0.00035616,7]
[341464090,1730909450808,-2162.91,0.00035616,7]
[341464091,1730909450819,-500.0,0.00035616,7]
[341464092,1730909450831,-500.0,0.00035616,7]
[341464093,1730909450845,-500.0,0.00035616,7]
[341464094,1730909450859,-500.0,0.00035616,7]
[341464095,1730909450871,-759.3,0.00035616,7]
[341464096,1730909450883,-500.0,0.00035616,7]
[341464097,1730909450895,-915.24,0.00035616,7]
[341464098,1730909450906,-1175.51,0.00035616,7]
[341464099,1730909450919,-500.0,0.00035616,7]
[341464100,1730909450930,-727.56,0.00035616,7]
[341464101,1730909450942,-500.0,0.00035616,7]
[341464102,1730909450954,-500.0,0.00035616,7]
[341464103,1730909450966,-500.0,0.00035616,7]
[341464104,1730909450978,-476.39384359,0.00035616,7]
[341464105,1730909450990,-500.0,0.00035616,7]
[341464106,1730909451002,-500.0,0.00035616,7]
[341464107,1730909451014,-500.0,0.00035616,7]
[341464108,1730909451026,-500.0,0.00035616,7]
[341464109,1730909451038,-500.0,0.00035616,7]
[341464110,1730909451051,-615.69467654,0.00035616,7]
[341464111,1730909451063,-500.0,0.00035616,7]
[341464112,1730909451076,-500.0,0.00035616,7]
[341464113,1730909451090,-500.0,0.00035616,7]
[341464114,1730909451105,-500.0,0.00035616,7]
[341464115,1730909451117,-1203.46,0.00035616,7]
[341464116,1730909451129,-500.0,0.00035616,7]
[341464117,1730909451141,-531.27675937,0.00035616,7]
[341464118,1730909451153,-1059.77,0.00035616,7]
[341464119,1730909451165,-936.76,0.00035616,7]
[341464120,1730909451176,-500.0,0.00035616,7]
[341464121,1730909451188,-500.0,0.00035616,7]
[341464122,1730909451200,-529.73815675,0.00035616,7]
[341464123,1730909451213,-500.0,0.00035616,7]
[341464124,1730909451226,-500.0,0.00035616,7]
[341464125,1730909451239,-500.32494042,0.00035616,7]
[341464126,1730909451251,-500.0,0.00035616,7]
[341464127,1730909451264,-649.46,0.00035616,7]
[341464128,1730909451275,-500.0,0.00035616,7]
[341464129,1730909451288,-500.0,0.00035616,7]
[341464130,1730909451300,-500.0,0.00035616,7]
[341464131,1730909451312,-500.0,0.00035616,7]
[341464132,1730909451324,-500.0,0.00035616,7]
[341464133,1730909451335,-958.83,0.00035616,7]
[341464134,1730909451350,-151.0,0.00035616,7]
[341464135,1730909451362,-500.0,0.00035616,7]
[341464136,1730909451373,-151.0,0.00035616,7]
[341464137,1730909451385,-500.0,0.00035616,7]
[341464138,1730909451396,-500.0,0.00035616,7]
[341464139,1730909451408,-500.0,0.00035616,7]
[341464140,1730909451419,-500.0,0.00035616,7]
[341464141,1730909451430,-500.0,0.00035616,7]
[341464142,1730909451441,-500.0,0.00035616,7]
[341464143,1730909451452,-500.0,0.00035616,7]
[341464144,1730909451463,-500.0,0.00035616,7]
[341464145,1730909451475,-500.0,0.00035616,7]
[341464146,1730909451487,-500.0,0.00035616,7]
[341464147,1730909451498,-500.0,0.00035616,7]
[341464148,1730909451510,-505.59889004,0.00035616,7]
[341464149,1730909451521,-500.0,0.00035616,7]
[341464150,1730909451532,-500.0,0.00035616,7]
[341464151,1730909451543,-500.0,0.00035616,7]
[341464152,1730909451554,-500.0,0.00035616,7]
[341464153,1730909451566,-896.01,0.00035616,7]
[341464154,1730909451578,-1339.58,0.00035616,7]
[341464155,1730909451589,-500.0,0.00035616,7]
[341464156,1730909451601,-500.0,0.00035616,7]
[341464157,1730909451610,-500.0,0.00035616,7]
[341464158,1730909451619,-500.0,0.00035616,7]
[341464159,1730909451629,-500.0,0.00035616,7]
[341464160,1730909451638,-403.49985491,0.00035616,7]
[341464161,1730909451648,-500.0,0.00035616,7]
[341464162,1730909451656,-500.0,0.00035616,7]
[341464163,1730909451665,-2187.51,0.00035616,7]
[341464164,1730909451674,-500.0,0.00035616,7]
[341464165,1730909451683,-500.0,0.00035616,7]
[341464166,1730909451693,-516.36453122,0.00035616,7]
[341464167,1730909452043,-500.0,0.00035616,7]
[341464168,1730909452075,-528.6312482,0.00035616,7]
[341464169,1730909452088,-500.0,0.00035616,7]
[341464170,1730909452099,-1388.99,0.00035616,7]
[341464171,1730909452108,-500.0,0.00035616,7]
[341464172,1730909452118,-500.0,0.00035616,7]
[341464173,1730909452127,-360.67114604,0.00035616,7]
[341464174,1730909452136,-832.79,0.00035616,7]
[341464175,1730909452145,-500.0,0.00035616,7]
[341464176,1730909452154,-500.0,0.00035616,7]
[341464177,1730909452164,-500.0,0.00035616,7]
[341464178,1730909452173,-764.97,0.00035616,7]
[341464179,1730909452182,-500.0,0.00035616,7]
[341464180,1730909452192,-453.26527614,0.00035616,7]
[341464181,1730909452201,-499.35535227,0.00035616,7]
[341464182,1730909452210,-500.0,0.00035616,7]
[341464183,1730909452219,-500.0,0.00035616,7]
[341464184,1730909452228,-500.0,0.00035616,7]
[341464185,1730909452236,-500.0,0.00035616,7]
[341464186,1730909452245,-1128.71,0.00035616,7]
[341464187,1730909452255,-1922.41,0.00035616,7]
[341464188,1730909452263,-500.0,0.00035616,7]
[341464189,1730909452273,-506.99175545,0.00035616,7]
[341464190,1730909452281,-500.0,0.00035616,7]
[341464191,1730909452291,-500.0,0.00035616,7]
[341464192,1730909452300,-500.0,0.00035616,7]
[341464193,1730909452309,-500.0,0.00035616,7]
[341464194,1730909452318,-765.95,0.00035616,7]
[341464195,1730909452328,-1230.36,0.00035616,7]
[341464196,1730909452338,-500.0,0.00035616,7]
[341464197,1730909452350,-1465.18,0.00035616,7]
[341464198,1730909452359,-500.0,0.00035616,7]
[341464199,1730909452368,-249.48549158,0.00035616,7]
[341464200,1730909452377,-500.0,0.00035616,7]
[341464201,1730909452388,-500.0,0.00035616,7]
[341464202,1730909452397,-500.0,0.00035616,7]
[341464203,1730909452406,-500.0,0.00035616,7]
[341464204,1730909452415,-500.0,0.00035616,7]
[341464205,1730909452426,-500.0,0.00035616,7]
[341464206,1730909452435,-950.62,0.00035616,7]
[341464207,1730909452444,-287.25406722,0.00035616,7]
[341464208,1730909452454,-500.0,0.00035616,7]
[341464209,1730909452463,-500.0,0.00035616,7]
[341464210,1730909452472,-500.0,0.00035616,7]
[341464211,1730909452481,-500.0,0.00035616,7]
[341464212,1730909452491,-593.40497309,0.00035616,7]
[341464213,1730909452499,-500.0,0.00035616,7]
[341464214,1730909452509,-500.0,0.00035616,7]
[341464215,1730909452519,-607.31,0.00035616,7]
[341464216,1730909452528,-500.0,0.00035616,7]
[341464217,1730909452537,-500.0,0.00035616,7]
[341464218,1730909452546,-4993.03,0.00035616,7]
[341464219,1730909452555,-500.0,0.00035616,7]
[341464220,1730909452565,-638.27,0.00035616,7]
[341464221,1730909452574,-500.0,0.00035616,7]
[341464222,1730909452583,-500.0,0.00035616,7]
[341464223,1730909452592,-500.0,0.00035616,7]
[341464224,1730909452602,-500.0,0.00035616,7]
[341464225,1730909452611,-500.0,0.00035616,7]
[341464226,1730909452620,-500.0,0.00035616,7]
[341464227,1730909452629,-500.0,0.00035616,7]
[341464228,1730909452639,-2185.75,0.00035616,7]
[341464229,1730909452648,-500.0,0.00035616,7]
[341464230,1730909452657,-500.0,0.00035616,7]
[341464231,1730909452667,-1085.32,0.00035616,7]
[341464232,1730909452677,-558.43549014,0.00035616,7]
[341464233,1730909452686,-500.0,0.00035616,7]
[341464234,1730909452695,-500.0,0.00035616,7]
[341464235,1730909452705,-500.0,0.00035616,7]
[341464236,1730909452715,-500.0,0.00035616,7]
[341464237,1730909452724,-507.58,0.00035616,7]
[341464238,1730909452733,-2404.62,0.00035616,7]
[341464239,1730909452743,-932.9,0.00035616,7]
[341464240,1730909452753,-499.194598,0.00035616,7]
[341464241,1730909452762,-500.0,0.00035616,7]
[341464242,1730909452771,-500.0,0.00035616,7]
[341464243,1730909452781,-500.0,0.00035616,7]
[341464244,1730909452790,-766.3,0.00035616,7]
[341464245,1730909452799,-500.0,0.00035616,7]
[341464246,1730909452808,-500.0,0.00035616,7]
[341464247,1730909452817,-500.0,0.00035616,7]
[341464248,1730909452827,-500.0,0.00035616,7]
[341464249,1730909452836,-256.81159319,0.00035616,7]
[341464250,1730909452846,-500.0,0.00035616,7]
[341464251,1730909452855,-500.0,0.00035616,7]
[341464252,1730909452865,-982.38,0.00035616,7]
[341464253,1730909452875,-1052.84,0.00035616,7]
[341464254,1730909452884,-500.0,0.00035616,7]
[341464255,1730909452893,-500.0,0.00035616,7]
[341464256,1730909452902,-707.09,0.00035616,7]
[341464257,1730909452912,-500.0,0.00035616,7]
[341464258,1730909452922,-500.0,0.00035616,7]
[341464259,1730909452933,-500.0,0.00035616,7]
[341464260,1730909452944,-500.0,0.00035616,7]
[341464261,1730909452954,-500.0,0.00035616,7]
[341464262,1730909452964,-500.0,0.00035616,7]
[341464263,1730909452973,-13196.52,0.00035616,7]
[341464264,1730909452982,-505.70402526,0.00035616,7]
[341464265,1730909452991,-500.0,0.00035616,7]
[341464266,1730909453000,-682.77,0.00035616,7]
[341464267,1730909453010,-530.67454699,0.00035616,7]
[341464268,1730909453019,-500.0,0.00035616,7]
[341464269,1730909453028,-1142.86,0.00035616,7]
[341464270,1730909453038,-500.0,0.00035616,7]
[341464271,1730909453047,-500.0,0.00035616,7]
[341464272,1730909453056,-500.0,0.00035616,7]
[341464273,1730909453065,-500.0,0.00035616,7]
[341464274,1730909453074,-500.0,0.00035616,7]
[341464275,1730909453083,-500.0,0.00035616,7]
[341464276,1730909453092,-1003.9,0.00035616,7]
[341464277,1730909453101,-500.0,0.00035616,7]
[341464278,1730909453110,-500.0,0.00035616,7]
[341464279,1730909453119,-500.0,0.00035616,7]
[341464280,1730909453128,-500.0,0.00035616,7]
[341464281,1730909453138,-500.0,0.00035616,7]
[341464282,1730909453148,-500.0,0.00035616,7]
[341464283,1730909453158,-500.0,0.00035616,7]
[341464284,1730909453167,-500.0,0.00035616,7]
[341464285,1730909453176,-1357.44,0.00035616,7]
[341464286,1730909453186,-695.93,0.00035616,7]
[341464287,1730909453195,-630.06,0.00035616,7]
[341464288,1730909453204,-500.0,0.00035616,7]
[341464289,1730909453213,-500.0,0.00035616,7]
[341464290,1730909453223,-903.75,0.00035616,7]
[341464291,1730909453231,-38953.77,0.00035616,7]
[341464292,1730909453241,-776.11,0.00035616,7]
[341464293,1730909453250,-500.0,0.00035616,7]
[341464294,1730909453259,-2743.73,0.00035616,7]
[341464295,1730909453268,-500.0,0.00035616,7]
[341464296,1730909453277,-500.0,0.00035616,7]
[341464297,1730909453286,-500.0,0.00035616,7]
[341464298,1730909453295,-500.0,0.00035616,7]
[341464299,1730909453304,-500.0,0.00035616,7]
[341464300,1730909453313,-500.0,0.00035616,7]
[341464301,1730909453323,-1356.05,0.00035616,7]
[341464302,1730909453333,-578.86,0.00035616,7]
[341464303,1730909453344,-500.0,0.00035616,7]
[341464304,1730909453356,-500.0,0.00035616,7]
[341464305,1730909453366,-477.08055269,0.00035616,7]
[341464306,1730909453375,-636.94,0.00035616,7]
[341464307,1730909453384,-735.22,0.00035616,7]
[341464308,1730909453393,-500.0,0.00035616,7]
[341464309,1730909453402,-500.0,0.00035616,7]
[341464310,1730909453412,-500.0,0.00035616,7]
[341464311,1730909453422,-500.0,0.00035616,7]
[341464312,1730909453432,-500.0,0.00035616,7]
[341464313,1730909453441,-1920.49,0.00035616,7]
[341464314,1730909453451,-500.0,0.00035616,7]
[341464315,1730909453462,-1061.85,0.00035616,7]
[341464316,1730909453471,-500.0,0.00035616,7]
[341464317,1730909453480,-548.46,0.00035616,7]
[341464318,1730909453489,-4440.08,0.00035616,7]
[341464319,1730909453499,-571.44668258,0.00035616,7]
[341464320,1730909453508,-500.0,0.00035616,7]
[341464321,1730909453517,-500.0,0.00035616,7]
[341464322,1730909453527,-500.0,0.00035616,7]
[341464323,1730909453544,-1994.16,0.00035616,7]
[341464324,1730909453556,-1000.0,0.00035616,7]
[341464325,1730909453566,-612.448422,0.00035616,7]
[341464326,1730909453576,-500.0,0.00035616,7]
[341464327,1730909453586,-500.0,0.00035616,7]
[341464328,1730909453596,-500.0,0.00035616,7]
[341464329,1730909453607,-500.0,0.00035616,7]
[341464330,1730909453616,-500.00000001,0.00035616,7]
[341464331,1730909453626,-700.43,0.00035616,7]
[341464332,1730909453636,-5967.49,0.00035616,7]
[341464333,1730909453646,-500.0,0.00035616,7]
[341464334,1730909453655,-759.5,0.00035616,7]
[341464335,1730909453665,-500.0,0.00035616,7]
[341464336,1730909453675,-2912.71,0.00035616,7]
[341464337,1730909453684,-3960.05,0.00035616,7]
[341464338,1730909453694,-500.0,0.00035616,7]
[341464339,1730909453703,-500.0,0.00035616,7]
[341464340,1730909453713,-2096.19,0.00035616,7]
[341464341,1730909453724,-500.0,0.00035616,7]
[341464342,1730909453734,-500.0,0.00035616,7]
[341464343,1730909453743,-500.0,0.00035616,7]
[341464344,1730909453753,-500.0,0.00035616,7]
[341464345,1730909453762,-500.0,0.00035616,7]
[341464346,1730909453772,-500.0,0.00035616,7]
[341464347,1730909453781,-500.0,0.00035616,7]
[341464348,1730909453791,-500.0,0.00035616,7]
[341464349,1730909453800,-1782.03,0.00035616,7]
[341464350,1730909453809,-281.82656379,0.00035616,7]
[341464351,1730909453818,-2330.07,0.00035616,7]
[341464352,1730909453828,-500.0,0.00035616,7]
[341464353,1730909453838,-483.69660932,0.00035616,7]
[341464354,1730909453848,-500.0,0.00035616,7]
[341464355,1730909453858,-502.925501,0.00035616,7]
[341464356,1730909453867,-500.0,0.00035616,7]
[341464357,1730909453878,-5130.16,0.00035616,7]
[341464358,1730909453887,-502.925501,0.00035616,7]
[341464359,1730909453897,-500.0,0.00035616,7]
[341464360,1730909453906,-2746.07,0.00035616,7]
[341464361,1730909453916,-539.31,0.00035616,7]
[341464362,1730909453925,-557.93,0.00035616,7]
[341464363,1730909453935,-519.77,0.00035616,7]
[341464364,1730909453944,-500.0,0.00035616,7]
[341464365,1730909453954,-502.925501,0.00035616,7]
[341464366,1730909453964,-502.925501,0.00035616,7]
[341464367,1730909453974,-500.0,0.00035616,7]
[341464368,1730909453983,-500.0,0.00035616,7]
[341464369,1730909453993,-416.6025903,0.00035616,7]
[341464370,1730909454003,-500.0,0.00035616,7]
[341464371,1730909454013,-1035.64,0.00035616,7]
[341464372,1730909454023,-500.0,0.00035616,7]
[341464373,1730909454032,-631.68,0.00035616,7]
[341464374,1730909454042,-500.0,0.00035616,7]
[341464375,1730909454051,-1097.95,0.00035616,7]
[341464376,1730909454061,-500.0,0.00035616,7]
[341464377,1730909454071,-500.0,0.00035616,7]
[341464378,1730909454081,-904.58,0.00035616,7]
[341464379,1730909454090,-500.0,0.00035616,7]
[341464380,1730909454101,-500.0,0.00035616,7]
[341464381,1730909454111,-2572.12,0.00035616,7]
[341464382,1730909454121,-720.17,0.00035616,7]
[341464383,1730909454131,-3473.45,0.00035616,7]
[341464384,1730909454141,-3625.07,0.00035616,7]
[341464385,1730909454151,-4047.76,0.00035616,7]
[341464386,1730909454160,-500.0,0.00035616,7]
[341464387,1730909454171,-609.14,0.00035616,7]
[341464388,1730909454180,-2853.02,0.00035616,7]
[341464389,1730909454191,-500.0,0.00035616,7]
[341464390,1730909454202,-500.0,0.00035616,7]
[341464391,1730909454212,-500.0,0.00035616,7]
[341464392,1730909454222,-1177.89,0.00035616,7]
[341464393,1730909454233,-981.78,0.00035616,7]
[341464394,1730909454244,-500.0,0.00035616,7]
[341464395,1730909454255,-299.2308258,0.00035616,7]
[341464396,1730909454266,-1177.89,0.00035616,7]
[341464397,1730909454277,-1177.89,0.00035616,7]
[341464398,1730909454288,-723.73,0.00035616,7]
[341464399,1730909454298,-1177.89,0.00035616,7]
[341464400,1730909454308,-500.0,0.00035616,7]
[341464401,1730909454319,-2536.37,0.00035616,7]
[341464402,1730909454329,-1177.89,0.00035616,7]
[341464403,1730909454341,-1177.89,0.00035616,7]
[341464404,1730909454354,-1177.89,0.00035616,7]
[341464405,1730909454371,-500.0,0.00035616,7]
[341464406,1730909454382,-1177.89,0.00035616,7]
[341464407,1730909454391,-1773.24,0.00035616,7]
[341464408,1730909454401,-1599.69,0.00035616,7]
[341464409,1730909454411,-1177.89,0.00035616,7]
[341464410,1730909454421,-1177.89,0.00035616,7]
[341464411,1730909454432,-1177.89,0.00035616,7]
[341464412,1730909454442,-1177.89,0.00035616,7]
[341464413,1730909454452,-1177.89,0.00035616,7]
[341464414,1730909454461,-500.0,0.00035616,7]
[341464415,1730909454471,-1177.89,0.00035616,7]
[341464416,1730909454481,-12677.72,0.00035616,7]
[341464417,1730909454491,-1862.91,0.00035616,7]
[341464418,1730909454500,-500.0,0.00035616,7]
[341464419,1730909454510,-1589.7,0.00035616,7]
[341464420,1730909454520,-153.01931849,0.00035616,7]
[341464421,1730909454530,-500.0,0.00035616,7]
[341464422,1730909454540,-927.61,0.00035616,7]
[341464423,1730909454550,-500.0,0.00035616,7]
[341464424,1730909454559,-839.2,0.00035616,7]
[341464425,1730909454569,-414.63157525,0.00035616,7]
[341464426,1730909454579,-500.0,0.00035616,7]
[341464427,1730909454588,-230.7423096,0.00035616,7]
[341464428,1730909454602,-566.48,0.00035616,7]
[341464429,1730909454611,-508.66861238,0.00035616,7]
[341464430,1730909454620,-500.0,0.00035616,7]
[341464431,1730909454630,-500.0,0.00035616,7]
[341464432,1730909454639,-151.0,0.00035616,7]
[341464433,1730909454648,-500.0,0.00035616,7]
[341464434,1730909454658,-500.0,0.00035616,7]
[341464435,1730909454667,-3702.92,0.00035616,7]
[341464436,1730909454677,-151.0,0.00035616,7]
[341464437,1730909454687,-500.0,0.00035616,7]
[341464438,1730909454696,-681.77,0.00035616,7]
[341464439,1730909454705,-500.0,0.00035616,7]
[341464440,1730909454715,-1815.13,0.00035616,7]
[341464441,1730909454724,-534.43452,0.00035616,2]
[341464442,1730909454733,-500.0,0.00035616,7]
[341464443,1730909454743,-500.0,0.00035616,7]
[341464444,1730909454752,-500.0,0.00035616,7]
[341464445,1730909454762,-1230.77,0.00035616,7]
[341464446,1730909454771,-903.94,0.00035616,7]
[341464447,1730909454781,-500.0,0.00035616,7]
[341464448,1730909454790,-1304.69,0.00035616,7]
[341464449,1730909454799,-639.45,0.00035616,7]
[341464450,1730909454809,-150.0,0.00035616,7]
[341464451,1730909454818,-523.23,0.00035616,7]
[341464452,1730909454828,-500.0,0.00035616,7]
[341464453,1730909454838,-500.0,0.00035616,7]
[341464454,1730909454849,-500.0,0.00035616,7]
[341464455,1730909454858,-500.0,0.00035616,7]
[341464456,1730909454868,-1172.63,0.00035616,7]
[341464457,1730909454879,-556.0,0.00035616,7]
[341464458,1730909454888,-1906.22,0.00035616,7]
[341464459,1730909454898,-500.0,0.00035616,7]
[341464460,1730909454907,-500.0,0.00035616,7]
[341464461,1730909454917,-755.24,0.00035616,7]
[341464462,1730909454926,-913.02,0.00035616,7]
[341464463,1730909454936,-739.85,0.00035616,7]
[341464464,1730909454947,-500.0,0.00035616,7]
[341464465,1730909454959,-525.39100256,0.00035616,7]
[341464466,1730909454968,-500.0,0.00035616,7]
[341464467,1730909454977,-551.8,0.00035616,7]
[341464468,1730909454987,-500.0,0.00035616,7]
[341464469,1730909454996,-689.62,0.00035616,7]
[341464470,1730909455006,-939.31,0.00035616,7]
[341464471,1730909455016,-500.0,0.00035616,7]
[341464472,1730909455026,-5381.37,0.00035616,7]
[341464473,1730909455035,-1420.37,0.00035616,7]
[341464474,1730909455045,-2099.53,0.00035616,7]
[341464475,1730909455054,-586.75,0.00035616,7]
[341464476,1730909455064,-589.08,0.00035616,7]
[341464477,1730909455074,-500.0,0.00035616,7]
[341464478,1730909455083,-879.9,0.00035616,7]
[341464479,1730909455094,-500.0,0.00035616,7]
[341464480,1730909455103,-560.98785882,0.00035616,7]
[341464481,1730909455112,-500.0,0.00035616,7]
[341464482,1730909455122,-524.17,0.00035616,7]
[341464483,1730909455131,-500.0,0.00035616,7]
[341464484,1730909455141,-618.73,0.00035616,7]
[341464485,1730909455150,-21534.5,0.00035616,7]
[341464486,1730909455160,-500.0,0.00035616,7]
[341464487,1730909455169,-500.0,0.00035616,7]
[341464488,1730909455178,-2233.63,0.00035616,7]
[341464489,1730909455386,-500.0,0.00035616,7]
[341464490,1730909455396,-1657.25,0.00035616,7]
[341464491,1730909455406,-500.0,0.00035616,7]
[341464492,1730909455415,-1387.83,0.00035616,7]
[341464493,1730909455425,-840.77,0.00035616,7]
[341464494,1730909455435,-500.0,0.00035616,7]
[341464495,1730909455444,-513.16061954,0.00035616,7]
[341464496,1730909455453,-500.0,0.00035616,7]
[341464497,1730909455463,-500.0,0.00035616,7]
[341464498,1730909455472,-500.0,0.00035616,7]
[341464499,1730909455482,-500.0,0.00035616,7]
[341464500,1730909455492,-500.0,0.00035616,7]
[341464501,1730909455502,-500.0,0.00035616,7]
[341464502,1730909455512,-797.23,0.00035616,7]
[341464503,1730909455521,-500.0,0.00035616,7]
[341464504,1730909455531,-347.26766606,0.00035616,7]
[341464505,1730909455541,-8623.7,0.00035616,7]
[341464506,1730909455551,-3518.2,0.00035616,7]
[341464507,1730909455560,-500.0,0.00035616,7]
[341464508,1730909455570,-500.0,0.00035616,7]
[341464509,1730909455580,-817.63,0.00035616,7]
[341464510,1730909455590,-858.51,0.00035616,7]
[341464511,1730909455602,-1577.82,0.00035616,7]
[341464512,1730909455612,-500.0,0.00035616,7]
[341464513,1730909455621,-500.0,0.00035616,7]
[341464514,1730909455630,-500.0,0.00035616,7]
[341464515,1730909455640,-500.0,0.00035616,7]
[341464516,1730909455649,-500.0,0.00035616,7]
[341464517,1730909455658,-500.0,0.00035616,7]
[341464518,1730909455668,-500.0,0.00035616,7]
[341464519,1730909455677,-500.0,0.00035616,7]
[341464520,1730909455686,-525.22,0.00035616,7]
[341464521,1730909455696,-2795.39,0.00035616,7]
[341464522,1730909455705,-500.0,0.00035616,7]
[341464523,1730909455715,-500.0,0.00035616,7]
[341464524,1730909455724,-1000.0,0.00035616,7]
[341464525,1730909455734,-500.0,0.00035616,7]
[341464526,1730909455743,-3871.35,0.00035616,120]
[341464527,1730909455753,-500.0,0.00035616,7]
[341464528,1730909455764,-500.0,0.00035616,7]
[341464529,1730909455774,-500.0,0.00035616,7]
[341464530,1730909455783,-500.0,0.00035616,7]
[341464531,1730909455797,-609.14,0.00035616,7]
[341464532,1730909455808,-1138.81,0.00035616,7]
[341464533,1730909455818,-552.9263683,0.00035616,7]
[341464534,1730909455829,-500.0,0.00035616,7]
[341464535,1730909455839,-500.0,0.00035616,7]
[341464536,1730909455852,-1540.77,0.00035616,7]
[341464537,1730909455862,-500.0,0.00035616,7]
[341464538,1730909455872,-500.0,0.00035616,7]
[341464539,1730909455883,-500.0,0.00035616,7]
[341464540,1730909455893,-500.0,0.00035616,7]
[341464541,1730909455904,-500.0,0.00035616,7]
[341464542,1730909455914,-500.0,0.00035616,7]
[341464543,1730909455924,-500.0,0.00035616,7]
[341464544,1730909455934,-500.0,0.00035616,7]
[341464545,1730909455944,-500.0,0.00035616,7]
[341464546,1730909455954,-151.0,0.00035616,7]
[341464547,1730909455964,-151.0,0.00035616,7]